fUSD/lending_fUSD_20240715
["ID","MTS","AMOUNT","RATE_DAILY","PERIOD"]
[332170006,1721001631814,151.0,0.00019873,120]
[332170008,1721001680364,2445.31,0.00027,120]
[332170011,1721001947038,151.0,0.00019967,30]
[332170012,1721001947127,151.0,0.00019568,120]
[332170014,1721002006458,1798.82,0.00018849,30]
[332170033,1721002231851,-533.73,0.00010601,2]
[332170034,1721002231862,-451.82341854,0.00010898,2]
[332170035,1721002231872,-164.89653503,0.00010998,2]
[332170036,1721002231881,-68.23379521,0.00011098,2]
[332170037,1721002231893,-396.24892489,0.00011098,2]
[332170038,1721002232266,-668.22113993,0.00011098,2]
[332170039,1721002232276,-156.04927212,0.00011098,2]
[332170040,1721002232285,-1444.76624288,0.00011098,2]
[332170041,1721002232295,-367.96145432,0.00011098,2]
[332170042,1721002232305,-624.51640094,0.00011098,2]
[332170043,1721002232315,-164.89653501,0.00011901,2]
[332170044,1721002232325,-1387.733275,0.0001224,2]
[332170045,1721002232335,-499.99,0.0001224,2]
[332170046,1721002232344,-326.59,0.0001224,2]
[332170047,1721002232355,-168.43,0.00012492,2]
[332170048,1721002232364,-5022.33,0.0001252,2]
[332170049,1721002232373,-1000.0,0.00012545,2]
[332170050,1721002232383,-250.0,0.00012559,2]
[332170051,1721002232392,-158.67,0.00012559,2]
[332170052,1721002232403,-150.0,0.00012576,2]
[332170053,1721002232412,-23900.0,0.00012577,2]
[332170054,1721002232422,-150.99,0.00012577,2]
[332170055,1721002232431,-200.0,0.00012669,2]
[332170056,1721002232441,-250.0,0.0001274,2]
[332170057,1721002232451,-150.99,0.0001274,2]
[332170068,1721002232708,-238.66,0.000128,2]
[332170069,1721002232718,-164.89653501,0.00012805,2]
[332170070,1721002232729,-533.73,0.00012865,2]
[332170071,1721002232740,-1250.0,0.00013,2]
[332170072,1721002232750,-2834.86167244,0.00013128,2]
[332170073,1721002232760,-1265.9247165,0.00013128,2]
[332170074,1721002232770,-832.62,0.00013141,2]
[332170075,1721002232780,-419.63,0.00013141,2]
[332170076,1721002232790,-832.62,0.00013141,2]
[332170077,1721002232800,-419.63,0.00013141,2]
[332170078,1721002232811,-419.63,0.00013141,2]
[332170079,1721002232820,-832.62,0.00013141,2]
[332170080,1721002232829,-419.63,0.00013141,2]
[332170081,1721002232838,-832.62,0.00013141,2]
[332170082,1721002232847,-832.62,0.00013141,2]
[332170083,1721002232857,-419.63,0.00013141,2]
[332170084,1721002232866,-419.63,0.00013141,2]
[332170085,1721002232875,-419.63,0.00013141,2]
[332170086,1721002232885,-419.63,0.00013141,2]
[332170087,1721002232893,-233.06,0.00013141,2]
[332170088,1721002232903,-1000.0,0.000132,2]
[332170089,1721002232911,-258.946012,0.00013227,2]
[332170090,1721002232921,-710.5,0.00013278,2]
[332170091,1721002232929,-258.946012,0.00013392,2]
[332170092,1721002232939,-5482.57072084,0.00013472,2]
[332170093,1721002232948,-150.0,0.00013552,2]
[332170094,1721002232957,-258.946012,0.00013557,2]
[332170095,1721002232966,-2761.3726,0.00013598,2]
[332170096,1721002232975,-1716.7885,0.00013599,2]
[332170097,1721002232984,-212.6008,0.00013653,2]
[332170098,1721002232994,-1126.3595,0.00013653,2]
[332170099,1721002233003,-255.0,0.0001367,2]
[332170100,1721002233013,-559.27660732,0.00013698,2]
[332170101,1721002233022,-500.0,0.00013698,2]
[332170102,1721002233032,-515.22,0.00013698,2]
[332170103,1721002233046,-628.93,0.00013698,2]
[332170104,1721002233055,-243.0,0.00013698,2]
[332170105,1721002233064,-500.0,0.00013698,2]
[332170106,1721002233075,-500.0,0.00013698,2]
[332170107,1721002233084,-500.0,0.00013698,2]
[332170108,1721002233094,-500.0,0.00013698,2]
[332170109,1721002233105,-500.0,0.00013698,2]
[332170110,1721002233115,-370.15,0.00013698,2]
[332170111,1721002233124,-620.84,0.00013698,2]
[332170112,1721002233134,-218.42,0.00013698,2]
[332170113,1721002233143,-490.29,0.00013698,2]
[332170114,1721002233153,-262.75,0.00013698,2]
[332170115,1721002233162,-500.0,0.00013698,2]
[332170116,1721002233171,-500.0,0.00013698,2]
[332170117,1721002233181,-500.0,0.00013698,2]
[332170118,1721002233190,-500.0,0.00013698,2]
[332170119,1721002233199,-500.0,0.00013698,2]
[332170120,1721002233210,-500.0,0.00013698,2]
[332170121,1721002233219,-500.0,0.00013698,2]
[332170122,1721002233227,-123.87910933,0.00013698,2]
[332170123,1721002233240,-376.12089067,0.00013698,2]
[332170124,1721002233249,-500.0,0.00013698,2]
[332170125,1721002233259,-500.0,0.00013698,2]
[332170126,1721002233268,-500.0,0.00013698,2]
[332170127,1721002233277,-500.0,0.00013698,2]
[332170128,1721002233287,-500.0,0.00013698,2]
[332170129,1721002233296,-500.0,0.00013698,2]
[332170130,1721002233305,-167.52,0.00013698,2]
[332170131,1721002233314,-500.0,0.00013698,2]
[332170132,1721002233324,-500.0,0.00013698,2]
[332170133,1721002233333,-171.02077713,0.00013698,2]
[332170134,1721002233343,-313.59782456,0.00013698,2]
[332170135,1721002233352,-428.17683411,0.00013698,2]
[332170136,1721002233361,-500.0,0.00013698,2]
[332170137,1721002233370,-1670.74,0.00013699,2]
[332170138,1721002233380,-382.28,0.00013699,2]
[332170139,1721002233390,-250.0,0.00013699,2]
[332170140,1721002233399,-9585.15,0.00013699,2]
[332170141,1721002233408,-7715.32877843,0.00013699,2]
[332170142,1721002233420,-1734.34122157,0.00013699,2]
[332170143,1721002233430,-164.89653501,0.00013708,2]
[332170144,1721002233439,-258.946012,0.00013722,2]
[332170145,1721002233448,-500.0,0.00013753,2]
[332170146,1721002233457,-500.0,0.00013753,2]
[332170147,1721002233467,-500.0,0.00013753,2]
[332170148,1721002233476,-474.58573309,0.00013753,2]
[332170149,1721002233486,-500.0,0.00013753,2]
[332170150,1721002233495,-500.0,0.00013753,2]
[332170151,1721002233505,-500.0,0.00013753,2]
[332170152,1721002233515,-500.0,0.00013753,2]
[332170153,1721002233524,-500.0,0.00013753,2]
[332170154,1721002233534,-500.0,0.00013753,2]
[332170155,1721002233543,-560.69,0.00013753,2]
[332170156,1721002233552,-500.0,0.00013753,2]
[332170157,1721002233561,-500.0,0.00013753,2]
[332170158,1721002233571,-500.0,0.00013753,2]
[332170159,1721002233580,-500.0,0.00013753,2]
[332170160,1721002233589,-500.0,0.00013753,2]
[332170161,1721002233599,-500.0,0.00013753,2]
[332170162,1721002233609,-500.0,0.00013753,2]
[332170163,1721002233619,-604.08054146,0.00013759,2]
[332170164,1721002233629,-163.33113184,0.0001379,2]
[332170165,1721002233638,-2809.947,0.0001379,2]
[332170166,1721002233648,-2500.0,0.0001379,2]
[332170167,1721002233657,-163.33113184,0.00013797,2]
[332170168,1721002233667,-175.98533304,0.00013799,2]
[332170169,1721002233675,-7500.0,0.000138,2]
[332170170,1721002233685,-1200.0,0.000138,2]
[332170171,1721002233694,-500.0,0.00013808,2]
[332170172,1721002233703,-500.0,0.00013808,2]
[332170173,1721002233713,-500.0,0.00013808,2]
[332170174,1721002233722,-500.0,0.00013808,2]
[332170175,1721002233731,-500.0,0.00013808,2]
[332170176,1721002233741,-500.0,0.00013808,2]
[332170177,1721002233750,-443.21277542,0.00013808,2]
[332170178,1721002233760,-500.0,0.00013808,2]
[332170179,1721002233769,-606.62942452,0.00013808,2]
[332170180,1721002233779,-500.0,0.00013808,2]
[332170181,1721002233787,-500.0,0.00013808,2]
[332170182,1721002233797,-500.0,0.00013808,2]
[332170183,1721002233806,-500.0,0.00013808,2]
[332170184,1721002233815,-500.0,0.00013808,2]
[332170185,1721002233824,-500.0,0.00013808,2]
[332170186,1721002233833,-500.0,0.00013808,2]
[332170187,1721002233842,-163.33113184,0.00013832,2]
[332170188,1721002233852,-263.75418329,0.00013849,2]
[332170189,1721002233862,-1156.61058,0.0001386,2]
[332170190,1721002233871,-500.0,0.00013863,2]
[332170191,1721002233880,-500.0,0.00013863,2]
[332170192,1721002233890,-615.43923521,0.00013863,2]
[332170193,1721002233899,-500.0,0.00013863,2]
[332170194,1721002233908,-500.0,0.00013863,2]
[332170195,1721002233917,-500.0,0.00013863,2]
[332170196,1721002233927,-500.0,0.00013863,2]
[332170197,1721002233936,-500.0,0.00013863,2]
[332170198,1721002233945,-541.76325749,0.00013863,2]
[332170199,1721002233954,-500.0,0.00013863,2]
[332170200,1721002233963,-500.0,0.00013863,2]
[332170201,1721002233973,-500.0,0.00013863,2]
[332170202,1721002233982,-500.0,0.00013863,2]
[332170203,1721002233991,-500.0,0.00013863,2]
[332170204,1721002234001,-163.33113184,0.00013866,2]
[332170205,1721002234010,-258.946012,0.00013888,2]
[332170206,1721002234020,-200.0,0.00013888,2]
[332170207,1721002234029,-205.75131637,0.00013889,2]
[332170208,1721002234042,-474.69895211,0.00013889,2]
[332170209,1721002234051,-417.495,0.0001389,2]
[332170210,1721002234060,-87476.3624,0.0001389,2]
[332170211,1721002234069,-154.1789908,0.00013896,2]
[332170212,1721002234080,-154.17899077,0.00013897,2]
[332170213,1721002234090,-154.17899077,0.00013898,2]
[332170214,1721002234099,-500.0,0.00013898,2]
[332170215,1721002234109,-500.0,0.00013898,2]
[332170216,1721002234120,-500.0,0.00013898,2]
[332170217,1721002234129,-1684.47,0.00013898,2]
[332170218,1721002234138,-500.0,0.00013898,2]
[332170219,1721002234147,-500.0,0.00013898,2]
[332170220,1721002234156,-500.0,0.00013899,2]
[332170221,1721002234166,-528.66409298,0.00013899,2]
[332170222,1721002234175,-500.0,0.00013899,2]
[332170223,1721002234185,-548.77,0.00013899,2]
[332170224,1721002234195,-500.0,0.00013899,2]
[332170225,1721002234205,-500.0,0.00013899,2]
[332170226,1721002234215,-324.96710287,0.00013899,2]
[332170227,1721002234225,-500.0,0.00013899,2]
[332170228,1721002234235,-500.0,0.00013899,2]
[332170229,1721002234244,-500.0,0.00013899,2]
[332170230,1721002234254,-150.0,0.00013899,2]
[332170231,1721002234263,-500.0,0.00013899,2]
[332170232,1721002234273,-500.0,0.00013899,2]
[332170233,1721002234282,-500.0,0.00013899,2]
[332170234,1721002234291,-500.0,0.00013899,2]
[332170235,1721002234301,-500.0,0.00013899,2]
[332170236,1721002234310,-500.0,0.00013899,2]
[332170237,1721002234320,-500.0,0.00013899,2]
[332170238,1721002234329,-500.0,0.00013899,2]
[332170239,1721002234339,-500.0,0.00013899,2]
[332170240,1721002234348,-500.0,0.00013899,2]
[332170241,1721002234362,-648.33417924,0.00013899,2]
[332170242,1721002234372,-154.17899077,0.00013899,2]
[332170243,1721002234381,-511.75999083,0.00013899,2]
[332170244,1721002234391,-223.3733685,0.00013899,2]
[332170245,1721002234402,-500.0,0.00013899,2]
[332170246,1721002234412,-286.52727637,0.00013899,2]
[332170247,1721002234422,-500.0,0.00013899,2]
[332170248,1721002234432,-500.0,0.00013899,2]
[332170249,1721002234441,-500.0,0.00013899,2]
[332170250,1721002234451,-500.0,0.00013899,2]
[332170251,1721002234461,-564.46,0.00013899,2]
[332170252,1721002234472,-500.0,0.00013899,2]
[332170253,1721002234482,-500.0,0.00013899,2]
[332170254,1721002234492,-500.0,0.00013899,2]
[332170255,1721002234501,-500.0,0.00013899,2]
[332170256,1721002234511,-500.0,0.00013899,2]
[332170257,1721002234521,-500.0,0.00013899,2]
[332170258,1721002234530,-500.0,0.00013899,2]
[332170259,1721002234540,-500.0,0.00013899,2]
[332170260,1721002234550,-500.0,0.00013899,2]
[332170261,1721002234559,-500.0,0.00013899,2]
[332170262,1721002234568,-500.0,0.00013899,2]
[332170263,1721002234579,-500.0,0.00013899,2]
[332170264,1721002234588,-500.0,0.00013899,2]
[332170265,1721002234597,-589.51959801,0.00013899,2]
[332170266,1721002234609,-500.0,0.00013899,2]
[332170267,1721002234619,-500.0,0.00013899,2]
[332170268,1721002234628,-500.0,0.00013899,2]
[332170269,1721002234638,-500.0,0.00013899,2]
[332170270,1721002234648,-500.0,0.00013899,2]
[332170271,1721002234658,-500.0,0.00013899,2]
[332170272,1721002234667,-500.0,0.00013899,2]
[332170273,1721002234677,-500.0,0.00013899,2]
[332170274,1721002234687,-500.0,0.00013899,2]
[332170275,1721002234696,-473.60087672,0.00013899,2]
[332170276,1721002234706,-500.0,0.00013899,2]
[332170277,1721002234715,-500.0,0.00013899,2]
[332170278,1721002234726,-500.0,0.00013899,2]
[332170279,1721002234735,-500.0,0.00013899,2]
[332170280,1721002234745,-535.9,0.00013899,2]
[332170281,1721002234755,-606.25,0.00013899,2]
[332170282,1721002234765,-251.66017049,0.00013899,2]
[332170283,1721002234774,-500.0,0.00013899,2]
[332170284,1721002234784,-2469.38,0.00013899,2]
[332170285,1721002234794,-316.33929512,0.00013899,2]
[332170286,1721002234804,-500.0,0.00013899,2]
[332170287,1721002234814,-500.0,0.00013899,2]
[332170288,1721002234823,-288.53700053,0.00013899,2]
[332170289,1721002234834,-500.0,0.00013899,2]
[332170290,1721002234843,-431.17737572,0.00013899,2]
[332170291,1721002234854,-500.0,0.00013899,2]
[332170292,1721002234864,-500.0,0.00013899,2]
[332170293,1721002234874,-268.20670839,0.00013899,2]
[332170294,1721002234883,-1000.0,0.000139,2]
[332170295,1721002234892,-500.0,0.000139,2]
[332170296,1721002234901,-174.58989142,0.000139,2]
[332170297,1721002234910,-169.99561809,0.000139,2]
[332170298,1721002234920,-154.17899077,0.000139,2]
[332170299,1721002234930,-175.98533304,0.000139,2]
[332170300,1721002234940,-163.33113184,0.000139,2]
[332170301,1721002234950,-500.0,0.00013917,2]
[332170302,1721002234960,-500.0,0.00013917,2]
[332170303,1721002234970,-257.78921286,0.00013917,2]
[332170304,1721002234979,-500.0,0.00013917,2]
[332170305,1721002234989,-250.51904942,0.00013917,2]
[332170306,1721002234998,-500.0,0.00013917,2]
[332170307,1721002235008,-500.0,0.00013917,2]
[332170308,1721002235017,-500.0,0.00013917,2]
[332170309,1721002235027,-500.0,0.00013917,2]
[332170310,1721002235042,-500.0,0.00013917,2]
[332170311,1721002235051,-500.0,0.00013917,2]
[332170312,1721002235061,-500.0,0.00013917,2]
[332170313,1721002235070,-500.0,0.00013953,2]
[332170314,1721002235079,-437.64681344,0.00013953,2]
[332170315,1721002235089,-500.0,0.00013953,2]
[332170316,1721002235098,-1684.47,0.00013953,2]
[332170317,1721002235110,-500.0,0.00013953,2]
[332170318,1721002235119,-500.0,0.00013953,2]
[332170319,1721002235128,-500.0,0.00013954,2]
[332170320,1721002235138,-500.0,0.00013954,2]
[332170321,1721002235147,-150.0,0.00013954,2]
[332170322,1721002235157,-500.0,0.00013954,2]
[332170323,1721002235167,-500.0,0.00013954,2]
[332170324,1721002235176,-500.0,0.00013954,2]
[332170325,1721002235189,-500.0,0.00013954,2]
[332170326,1721002235198,-500.0,0.00013954,2]
[332170327,1721002235208,-500.0,0.00013954,2]
[332170328,1721002235217,-500.0,0.00013954,2]
[332170329,1721002235226,-500.0,0.00013954,2]
[332170330,1721002235235,-500.0,0.00013954,2]
[332170331,1721002235244,-500.0,0.00013954,2]
[332170332,1721002235254,-500.0,0.00013954,2]
[332170333,1721002235263,-500.0,0.00013954,2]
[332170334,1721002235272,-500.0,0.00013954,2]
[332170335,1721002235282,-564.46,0.00013954,2]
[332170336,1721002235291,-500.0,0.00013954,2]
[332170337,1721002235300,-500.0,0.00013954,2]
[332170338,1721002235309,-500.0,0.00013954,2]
[332170339,1721002235319,-500.0,0.00013954,2]
[332170340,1721002235328,-500.0,0.00013954,2]
[332170341,1721002235337,-500.0,0.00013954,2]
[332170342,1721002235347,-500.0,0.00013954,2]
[332170343,1721002235356,-500.0,0.00013954,2]
[332170344,1721002235366,-500.0,0.00013954,2]
[332170345,1721002235375,-500.0,0.00013954,2]
[332170346,1721002235384,-500.0,0.00013954,2]
[332170347,1721002235393,-500.0,0.00013954,2]
[332170348,1721002235402,-500.0,0.00013954,2]
[332170349,1721002235411,-500.0,0.00013954,2]
[332170350,1721002235421,-500.0,0.00013954,2]
[332170351,1721002235430,-500.0,0.00013954,2]
[332170352,1721002235438,-538.70623765,0.00013954,2]
[332170353,1721002235448,-500.0,0.00013954,2]
[332170354,1721002235457,-500.0,0.00013954,2]
[332170355,1721002235466,-176.69650341,0.00013954,2]
[332170356,1721002235475,-500.0,0.00013954,2]
[332170357,1721002235484,-500.0,0.00013954,2]
[332170358,1721002235494,-500.0,0.00013954,2]
[332170359,1721002235503,-500.0,0.00013954,2]
[332170360,1721002235512,-535.9,0.00013954,2]
[332170361,1721002235521,-606.25,0.00013954,2]
[332170362,1721002235531,-500.0,0.00013954,2]
[332170363,1721002235540,-2469.38,0.00013954,2]
[332170364,1721002235549,-500.0,0.00013954,2]
[332170365,1721002235558,-500.0,0.00013954,2]
[332170366,1721002235567,-500.0,0.00013954,2]
[332170367,1721002235576,-500.0,0.00013954,2]
[332170368,1721002235585,-500.0,0.00013954,2]
[332170369,1721002235594,-500.0,0.00013972,2]
[332170370,1721002235604,-500.0,0.00013972,2]
[332170371,1721002235613,-500.0,0.00013972,2]
[332170372,1721002235622,-500.0,0.00013972,2]
[332170373,1721002235631,-500.0,0.00013972,2]
[332170374,1721002235639,-500.0,0.00013972,2]
[332170375,1721002235649,-500.0,0.00013972,2]
[332170376,1721002235658,-500.0,0.00013972,2]
[332170377,1721002235666,-500.0,0.00013972,2]
[332170378,1721002235676,-500.0,0.00013972,2]
[332170379,1721002235685,-1000.0,0.00013973,5]
[332170380,1721002235695,-437.169,0.00013973,2]
[332170381,1721002235704,-8357.98874427,0.0001399,3]
[332170382,1721002235715,-9286.6541603,0.0001399,3]
[332170383,1721002235724,-6865.6259169,0.00013999,2]
[332170384,1721002235734,-22620.3686776,0.00013999,2]
[332170385,1721002235743,-3310.7555589,0.00013999,2]
[332170386,1721002235752,-517.0,0.00014,2]
[332170387,1721002235762,-473722.13082679,0.00014,2]
[332170388,1721002235978,-286.18192272,0.00014,2]
[332170390,1721002237917,-889.5174802,0.00013281,2]
[332170391,1721002237933,-3317.92491871,0.00013281,2]
[332170392,1721002237943,-685.74697469,0.00013543,2]
[332170393,1721002237953,-500.0,0.00013899,2]
[332170394,1721002237963,-500.0,0.00013954,2]
[332170395,1721002237972,-44312.01650792,0.00014,2]
[332170396,1721002238127,-331.0,0.00013898,2]
[332170477,1721002240036,-212.6008,0.00013599,2]
[332170480,1721002240051,-186.42,0.00013898,2]
[332170482,1721002240061,-517.42,0.00013953,2]
[332170484,1721002240071,-787.80343629,0.00013998,2]
[332170486,1721002240084,-293.58177218,0.00013998,2]
[332170488,1721002240095,-1606.0,0.00013998,2]
[332170490,1721002240109,-2834.67497307,0.00013998,2]
[332170503,1721002240227,-148.30689506,0.00013998,2]
[332170505,1721002240237,-3696.69633503,0.00014,2]
[332170507,1721002240248,-1365.02159675,0.00014,2]
[332170509,1721002240260,-4341.68845553,0.00014,2]
[332170511,1721002240271,-2757.99397552,0.00014,2]
[332170514,1721002240283,-81465.69818906,0.00014,2]
[332170797,1721002243043,-4607.52662093,0.00014,2]
[332170799,1721002243055,-740.76734568,0.00014,2]
[332171100,1721002245917,-13690.82341382,0.00013828,2]
[332171104,1721002245931,-3404.49953242,0.00013828,2]
[332171111,1721002245969,-301.33416204,0.00013828,2]
[332171138,1721002246187,-6723.95799994,0.00013828,2]
[332171141,1721002246199,-522.93853237,0.00013828,2]
[332171143,1721002246212,-72355.85941075,0.00013828,2]
[332171145,1721002246221,-208357.04049327,0.00014,2]
[332171146,1721002246231,-493849.98983532,0.00014,2]
[332171151,1721002246264,-45944.56520174,0.00014,2]
[332171153,1721002246275,-6101.59999999,0.00014,2]
[332171752,1721002505495,665.0,0.00025,60]
[332171753,1721002551346,1648.91,0.00018849,30]
[332171754,1721002551882,151.0,0.00020186,120]
[332171756,1721002703811,236.49662539,0.00025,60]
[332171762,1721002797110,151.0,0.0001967,120]
[332171771,1721002985015,150.0,0.00027,120]
[332171778,1721003111529,3200.0,0.00025,60]
[332171779,1721003111858,3200.0,0.00025,60]
[332171780,1721003112567,3200.0,0.00025,60]
[332171785,1721003159273,500.2974007,0.00027,120]
[332171789,1721003198611,1285.0,0.00025,60]
[332171791,1721003232003,1511.5,0.00018849,30]
[332171793,1721003247655,151.0,0.00019741,120]
[332171796,1721003337288,1800.0,0.00027,120]
[332171818,1721003432051,-150.0,0.00011097,2]
[332171819,1721003432063,-110.34471825,0.00011098,2]
[332171820,1721003432108,-776.88428348,0.00011098,2]
[332171821,1721003432120,-647.71813835,0.00011098,2]
[332171822,1721003432133,-519.26994235,0.00011098,2]
[332171823,1721003432145,-331.63513846,0.00011098,2]
[332171824,1721003432156,-4829.22384462,0.00011098,2]
[332171825,1721003432167,-342.59184819,0.00011098,2]
[332171826,1721003432180,-559.75762178,0.00011098,2]
[332171827,1721003432194,-1932.51220247,0.00011098,2]
[332171828,1721003432204,-163.7587599,0.00011098,2]
[332171829,1721003432215,-5601.11144692,0.00011098,2]
[332171830,1721003432225,-393.45339341,0.00011098,2]
[332171831,1721003432235,-203.21171112,0.00011197,2]
[332171832,1721003432246,-516.65425231,0.00011197,2]
[332171833,1721003432256,-203.26547052,0.00011199,2]
[332171834,1721003432266,-620.10900742,0.00011773,2]
[332171835,1721003432276,-17137.0137267,0.000118,2]
[332171836,1721003432287,-155.36558088,0.00012273,2]
[332171837,1721003432299,-156.0,0.00012273,2]
[332171838,1721003432309,-209.00279412,0.00012302,2]
[332171839,1721003432320,-174.35486347,0.00012302,2]
[332171840,1721003432331,-485.43834991,0.00012392,2]
[332171841,1721003432341,-800.0,0.00012401,2]
[332171842,1721003432351,-499.99,0.00012401,2]
[332171843,1721003432362,-14772.74,0.00012402,2]
[332171844,1721003432372,-190.93,0.00012402,2]
[332171845,1721003432383,-250.0,0.00012422,2]
[332171846,1721003432394,-482.0,0.00012427,2]
[332171847,1721003432404,-250.0,0.00012494,2]
[332171848,1721003432415,-3092.01499812,0.0001251,2]
[332171849,1721003432431,-182.0,0.00012628,2]
[332171850,1721003432442,-200.0,0.00012669,2]
[332171851,1721003432452,-300.0,0.00013,4]
[332171852,1721003432463,-3491.58541877,0.00013,2]
[332171853,1721003432474,-700.0,0.000131,4]
[332171854,1721003432484,-1000.0,0.000132,4]
[332171855,1721003432496,-164.151634,0.00013227,2]
[332171856,1721003432506,-253.760719,0.00013227,2]
[332171857,1721003432516,-218.0,0.00013247,2]
[332171858,1721003432527,-150.0,0.00013278,2]
[332171859,1721003432538,-150.0,0.00013278,2]
[332171860,1721003432550,-150.0,0.00013278,2]
[332171861,1721003432560,-150.0,0.00013278,2]
[332171862,1721003432570,-1400.0,0.000133,4]
[332171863,1721003432580,-164.151634,0.00013392,2]
[332171864,1721003432591,-253.760719,0.00013392,2]
[332171865,1721003432602,-1700.0,0.000134,4]
[332171866,1721003432612,-184.45348293,0.00013472,2]
[332171867,1721003432622,-300.0,0.000135,4]
[332171868,1721003432633,-276.78636005,0.00013543,2]
[332171869,1721003432643,-164.151634,0.00013557,2]
[332171870,1721003432654,-253.760719,0.00013557,2]
[332171871,1721003432664,-1418.60140405,0.0001358,2]
[332171872,1721003432674,-300.0,0.000136,4]
[332171873,1721003432684,-283779.3372,0.0001369,2]
[332171874,1721003432694,-500.0,0.00013698,2]
[332171875,1721003432705,-500.0,0.00013698,2]
[332171876,1721003432715,-500.0,0.00013698,2]
[332171877,1721003432726,-500.0,0.00013698,2]
[332171878,1721003432737,-500.0,0.00013698,2]
[332171879,1721003432748,-150.0,0.00013698,2]
[332171880,1721003432758,-500.0,0.00013698,2]
[332171881,1721003432769,-500.0,0.00013698,2]
[332171882,1721003432779,-500.0,0.00013698,2]
[332171883,1721003432790,-500.0,0.00013698,2]
[332171884,1721003432802,-500.0,0.00013698,2]
[332171885,1721003432812,-500.0,0.00013698,2]
[332171886,1721003432823,-500.0,0.00013698,2]
[332171887,1721003432834,-500.0,0.00013698,2]
[332171888,1721003432845,-2774.2,0.00013698,2]
[332171889,1721003432856,-500.0,0.00013698,2]
[332171890,1721003432867,-565.56,0.00013698,2]
[332171891,1721003432879,-500.0,0.00013698,2]
[332171892,1721003432891,-500.0,0.00013698,2]
[332171893,1721003432902,-500.0,0.00013698,2]
[332171894,1721003432913,-500.0,0.00013698,2]
[332171895,1721003432923,-500.0,0.00013698,2]
[332171896,1721003432935,-500.0,0.00013698,2]
[332171897,1721003432946,-500.0,0.00013698,2]
[332171898,1721003432957,-500.0,0.00013698,2]
[332171899,1721003432969,-603.7,0.00013698,2]
[332171900,1721003432980,-500.0,0.00013698,2]
[332171901,1721003432990,-500.0,0.00013698,2]
[332171902,1721003433002,-500.0,0.00013698,2]
[332171903,1721003433012,-237.07,0.00013698,2]
[332171904,1721003433022,-500.0,0.00013698,2]
[332171905,1721003433032,-500.0,0.00013698,2]
[332171906,1721003433043,-500.0,0.00013698,2]
[332171907,1721003433053,-500.0,0.00013698,2]
[332171908,1721003433064,-500.0,0.00013698,2]
[332171909,1721003433074,-597.6,0.00013698,2]
[332171910,1721003433085,-500.0,0.00013698,2]
[332171911,1721003433095,-500.0,0.00013698,2]
[332171912,1721003433106,-500.0,0.00013698,2]
[332171913,1721003433115,-500.0,0.00013698,2]
[332171914,1721003433125,-500.0,0.00013698,2]
[332171915,1721003433135,-500.0,0.00013698,2]
[332171916,1721003433146,-401.93310557,0.00013698,2]
[332171917,1721003433155,-500.0,0.00013698,2]
[332171918,1721003433166,-2323.09,0.00013698,2]
[332171919,1721003433175,-500.0,0.00013698,2]
[332171920,1721003433185,-500.0,0.00013698,2]